[Event "Late-Titled-Tuesday-Blitz-May-28-2024"]
[Site "Chess.com"]
[Date "2024.05.28"]
[Round "3"]
[White "NovakRatko"]
[Black "Maus7"]
[Result "0-1"]
[WhiteElo "2366"]
[BlackElo "2560"]
[TimeControl "180+1"]
[EndTime "14:28:17 PDT"]
[Termination "Maus7 won on time"]

1. d4 {[%clk 0:01:40]} 1... Nf6 {[%clk 0:02:58.3]} 2. c4 {[%clk 0:01:40.1]} 2...
e6 {[%clk 0:02:58.3]} 3. Bg5 {[%clk 0:01:40.5]} 3... c5 {[%clk 0:02:51.6]} 4. d5
{[%clk 0:01:40]} 4... exd5 {[%clk 0:02:52.5]} 5. cxd5 {[%clk 0:01:39.4]} 5... d6
{[%clk 0:02:49.9]} 6. Nc3 {[%clk 0:01:38.9]} 6... Nbd7 {[%clk 0:02:41.4]} 7. e4
{[%clk 0:01:38.1]} 7... Be7 {[%clk 0:02:39.8]} 8. Qd2 {[%clk 0:01:34.3]} 8...
O-O {[%clk 0:02:30.8]} 9. Nf3 {[%clk 0:01:26.7]} 9... a6 {[%clk 0:02:25]} 10. a4
{[%clk 0:01:26.2]} 10... Qa5 {[%clk 0:02:21.5]} 11. Ra3 {[%clk 0:01:20.5]} 11...
Qb4 {[%clk 0:02:16.5]} 12. Bd3 {[%clk 0:01:19]} 12... c4 {[%clk 0:02:11.7]} 13.
Bb1 {[%clk 0:01:15]} 13... Nc5 {[%clk 0:02:00.1]} 14. h3 {[%clk 0:01:11.2]}
14... Bd7 {[%clk 0:01:35]} 15. Kf1 {[%clk 0:01:09.3]} 15... b5 {[%clk 0:01:29]}
16. axb5 {[%clk 0:01:02]} 16... axb5 {[%clk 0:01:28.6]} 17. Rxa8 {[%clk
0:01:01.3]} 17... Rxa8 {[%clk 0:01:29.5]} 18. g4 {[%clk 0:01:00.7]} 18... Qb3
{[%clk 0:00:55]} 19. e5 {[%clk 0:00:53.8]} 19... dxe5 {[%clk 0:00:53.5]} 20.
Nxe5 {[%clk 0:00:52.2]} 20... b4 {[%clk 0:00:43.3]} 21. Ne2 {[%clk 0:00:19.9]}
21... Nfe4 {[%clk 0:00:37.4]} 22. Bxe4 {[%clk 0:00:09.7]} 22... Nxe4 {[%clk
0:00:34.1]} 23. Nxd7 {[%clk 0:00:09.9]} 23... Nxd2+ {[%clk 0:00:31.8]} 24. Bxd2
{[%clk 0:00:10]} 24... Ra1+ {[%clk 0:00:28.3]} 25. Be1 {[%clk 0:00:02.3]} 25...
Qd1 {[%clk 0:00:24.1]} 0-1

[Event "Late-Titled-Tuesday-Blitz-May-28-2024"]
[Site "Chess.com"]
[Date "2024.05.28"]
[Round "3"]
[White "Meri-Arabidze"]
[Black "wonderfultime"]
[Result "0-1"]
[WhiteElo "2696"]
[BlackElo "3007"]
[TimeControl "180+1"]
[EndTime "14:28:19 PDT"]
[Termination "wonderfultime won by resignation"]

1. d4 {[%clk 0:03:00.9]} 1... d5 {[%clk 0:02:55.1]} 2. c4 {[%clk 0:03:01.1]}
2... c6 {[%clk 0:02:55.4]} 3. Nf3 {[%clk 0:02:59.6]} 3... Nf6 {[%clk 0:02:56]}
4. g3 {[%clk 0:02:59.8]} 4... g6 {[%clk 0:02:54.4]} 5. Bg2 {[%clk 0:02:59.5]}
5... Bg7 {[%clk 0:02:55.2]} 6. O-O {[%clk 0:02:59.9]} 6... O-O {[%clk
0:02:55.9]} 7. a4 {[%clk 0:03:00.3]} 7... a5 {[%clk 0:02:52.7]} 8. cxd5 {[%clk
0:02:57.5]} 8... Nxd5 {[%clk 0:02:53.1]} 9. Nc3 {[%clk 0:02:56.9]} 9... Na6
{[%clk 0:02:51.7]} 10. e4 {[%clk 0:02:56.4]} 10... Ndb4 {[%clk 0:02:50.3]} 11.
Be3 {[%clk 0:02:52.9]} 11... Bg4 {[%clk 0:02:50.3]} 12. h3 {[%clk 0:02:49.5]}
12... Bxf3 {[%clk 0:02:50.4]} 13. Bxf3 {[%clk 0:02:49.8]} 13... Nc7 {[%clk
0:02:50.7]} 14. Qd2 {[%clk 0:02:37.4]} 14... e6 {[%clk 0:02:47.7]} 15. Rfd1
{[%clk 0:02:36.9]} 15... f5 {[%clk 0:02:47.6]} 16. Bg2 {[%clk 0:02:33.1]} 16...
Kh8 {[%clk 0:02:39.9]} 17. Bh6 {[%clk 0:02:28.7]} 17... Bxh6 {[%clk 0:02:31.8]}
18. Qxh6 {[%clk 0:02:29.6]} 18... Qf6 {[%clk 0:02:31.9]} 19. Rd2 {[%clk
0:02:12.9]} 19... Rad8 {[%clk 0:02:17.8]} 20. Rad1 {[%clk 0:02:11.8]} 20... f4
{[%clk 0:02:18]} 21. e5 {[%clk 0:02:06.4]} 21... Qg7 {[%clk 0:02:18.1]} 22.
Qxg7+ {[%clk 0:02:05.4]} 22... Kxg7 {[%clk 0:02:19]} 23. Ne4 {[%clk 0:01:58.3]}
23... f3 {[%clk 0:01:40.7]} 24. Bf1 {[%clk 0:01:57.5]} 24... b6 {[%clk
0:01:40.5]} 25. Bc4 {[%clk 0:01:49.9]} 25... h6 {[%clk 0:01:35.3]} 26. h4 {[%clk
0:01:36.1]} 26... Rd7 {[%clk 0:01:34.4]} 27. Bb3 {[%clk 0:01:21.4]} 27... Ncd5
{[%clk 0:01:31.8]} 28. Bxd5 {[%clk 0:01:19.4]} 28... cxd5 {[%clk 0:01:28.3]} 29.
Nd6 {[%clk 0:01:13.9]} 29... Rc7 {[%clk 0:01:29]} 30. Nb5 {[%clk 0:01:08.6]}
30... Rc6 {[%clk 0:01:24.5]} 31. Kh2 {[%clk 0:00:58.6]} 31... g5 {[%clk
0:01:21]} 32. Kh3 {[%clk 0:00:52.4]} 32... Kg6 {[%clk 0:01:12.7]} 33. g4 {[%clk
0:00:52.1]} 33... gxh4 {[%clk 0:00:49.4]} 34. Kxh4 {[%clk 0:00:53]} 34... Rf4
{[%clk 0:00:49.7]} 35. Kg3 {[%clk 0:00:44.3]} 35... Kg5 {[%clk 0:00:49.3]} 36.
Rh1 {[%clk 0:00:44.2]} 36... Rxg4+ {[%clk 0:00:46.7]} 37. Kxf3 {[%clk
0:00:44.5]} 37... Rc2 {[%clk 0:00:43.3]} 38. Rxc2 {[%clk 0:00:30.7]} 38... Nxc2
{[%clk 0:00:44.2]} 39. Rxh6 {[%clk 0:00:28.9]} 39... Ne1+ {[%clk 0:00:43.8]} 40.
Ke2 {[%clk 0:00:25.3]} 40... Re4+ {[%clk 0:00:43.9]} 41. Kd2 {[%clk 0:00:21.7]}
41... Kxh6 {[%clk 0:00:44.7]} 42. Kc3 {[%clk 0:00:16.7]} 42... Nf3 {[%clk
0:00:43.8]} 43. b3 {[%clk 0:00:16.4]} 43... Kg6 {[%clk 0:00:42.3]} 0-1

[Event "Late-Titled-Tuesday-Blitz-May-28-2024"]
[Site "Chess.com"]
[Date "2024.05.28"]
[Round "3"]
[White "Nekoo04"]
[Black "ansko1999"]
[Result "0-1"]
[WhiteElo "2425"]
[BlackElo "2585"]
[TimeControl "180+1"]
[EndTime "14:28:19 PDT"]
[Termination "ansko1999 won on time"]

1. d4 {[%clk 0:02:58.1]} 1... d5 {[%clk 0:02:59.6]} 2. c4 {[%clk 0:02:56.5]}
2... c5 {[%clk 0:02:59.5]} 3. dxc5 {[%clk 0:02:47.3]} 3... d4 {[%clk 0:02:46.2]}
4. Nf3 {[%clk 0:02:40.7]} 4... Nc6 {[%clk 0:02:42.4]} 5. a3 {[%clk 0:02:25.6]}
5... a5 {[%clk 0:02:36.7]} 6. e3 {[%clk 0:02:14.4]} 6... e5 {[%clk 0:02:33.8]}
7. exd4 {[%clk 0:02:12.1]} 7... exd4 {[%clk 0:02:34.7]} 8. Bd3 {[%clk
0:01:57.2]} 8... Bxc5 {[%clk 0:02:32.3]} 9. Nbd2 {[%clk 0:01:55.8]} 9... Nf6
{[%clk 0:02:29.9]} 10. O-O {[%clk 0:01:50.3]} 10... O-O {[%clk 0:02:29.6]} 11.
Nb3 {[%clk 0:01:46.1]} 11... b6 {[%clk 0:02:22]} 12. Bg5 {[%clk 0:01:34.7]}
12... h6 {[%clk 0:02:16.7]} 13. Bh4 {[%clk 0:01:33.6]} 13... Bg4 {[%clk
0:02:06.6]} 14. Bc2 {[%clk 0:01:07.4]} 14... Ne5 {[%clk 0:01:52.7]} 15. Kh1
{[%clk 0:00:29.1]} 15... g5 {[%clk 0:01:00.4]} 16. Bg3 {[%clk 0:00:18.1]} 16...
Nxc4 {[%clk 0:00:54]} 17. h3 {[%clk 0:00:08.8]} 17... Bh5 {[%clk 0:00:52.9]} 18.
Nbxd4 {[%clk 0:00:05]} 18... Nxb2 {[%clk 0:00:42.6]} 19. Qd2 {[%clk 0:00:03.6]}
19... Nc4 {[%clk 0:00:23.7]} 20. Qd3 {[%clk 0:00:03.5]} 20... Bxf3 {[%clk
0:00:16.7]} 21. Qxc4 {[%clk 0:00:02.6]} 21... Qxd4 {[%clk 0:00:12.3]} 0-1

[Event "Late-Titled-Tuesday-Blitz-May-28-2024"]
[Site "Chess.com"]
[Date "2024.05.28"]
[Round "3"]
[White "djjohnnywoo"]
[Black "Squirlolz"]
[Result "0-1"]
[WhiteElo "2140"]
[BlackElo "2537"]
[TimeControl "180+1"]
[EndTime "14:28:20 PDT"]
[Termination "Squirlolz won by resignation"]

1. b3 {[%clk 0:03:00.9]} 1... a5 {[%clk 0:02:46.7]} 2. a4 {[%clk 0:02:58.7]}
2... e5 {[%clk 0:02:45.5]} 3. Bb2 {[%clk 0:02:58.6]} 3... f6 {[%clk 0:02:46.1]}
4. e3 {[%clk 0:02:58.7]} 4... Bb4 {[%clk 0:02:45.8]} 5. Nf3 {[%clk 0:02:58.1]}
5... d5 {[%clk 0:02:44.3]} 6. Nc3 {[%clk 0:02:54.3]} 6... Ne7 {[%clk 0:02:43.9]}
7. Be2 {[%clk 0:02:50.4]} 7... O-O {[%clk 0:02:43.5]} 8. O-O {[%clk 0:02:49.2]}
8... Be6 {[%clk 0:02:43.6]} 9. d4 {[%clk 0:02:47.5]} 9... e4 {[%clk 0:02:43.5]}
10. Nd2 {[%clk 0:02:46.7]} 10... f5 {[%clk 0:02:44]} 11. f4 {[%clk 0:02:38.8]}
11... Kh8 {[%clk 0:02:34.8]} 12. Kh1 {[%clk 0:02:31.1]} 12... Rg8 {[%clk
0:02:34]} 13. g3 {[%clk 0:02:25.5]} 13... g5 {[%clk 0:02:34]} 14. Rg1 {[%clk
0:02:23.8]} 14... Nd7 {[%clk 0:02:34.3]} 15. Nf1 {[%clk 0:02:03.2]} 15... Nf6
{[%clk 0:02:22.3]} 16. Na2 {[%clk 0:02:02.7]} 16... Bd6 {[%clk 0:02:21.7]} 17.
c4 {[%clk 0:02:01.9]} 17... c6 {[%clk 0:02:22]} 18. c5 {[%clk 0:01:57]} 18...
Bc7 {[%clk 0:02:22]} 19. b4 {[%clk 0:01:57.7]} 19... axb4 {[%clk 0:02:20.7]} 20.
Nxb4 {[%clk 0:01:57]} 20... Qf8 {[%clk 0:02:17.5]} 21. Qe1 {[%clk 0:01:35.9]}
21... Qh6 {[%clk 0:02:16.2]} 22. Qf2 {[%clk 0:01:34.9]} 22... Bf7 {[%clk
0:02:15.2]} 23. Bc3 {[%clk 0:01:31.6]} 23... Bh5 {[%clk 0:02:13.1]} 24. Nc2
{[%clk 0:01:25.5]} 24... Rg7 {[%clk 0:01:36.4]} 25. Bxh5 {[%clk 0:01:22]} 25...
Qxh5 {[%clk 0:01:35.3]} 26. fxg5 {[%clk 0:01:09.6]} 26... Rxg5 {[%clk
0:01:18.3]} 27. Be1 {[%clk 0:01:06.5]} 27... Rag8 {[%clk 0:01:17.6]} 28. Qg2
{[%clk 0:01:01.4]} 28... f4 {[%clk 0:01:01.7]} 29. exf4 {[%clk 0:01:00.9]} 29...
Bxf4 {[%clk 0:01:02.6]} 30. Nce3 {[%clk 0:01:00.1]} 30... Nf5 {[%clk 0:00:58.6]}
31. Nxf5 {[%clk 0:00:58.6]} 31... Rxf5 {[%clk 0:00:59.5]} 32. Bf2 {[%clk
0:00:55.9]} 32... Bh6 {[%clk 0:00:46.7]} 33. Be3 {[%clk 0:00:55.9]} 33... Ng4
{[%clk 0:00:46.6]} 34. Re1 {[%clk 0:00:44.9]} 34... Rxf1 {[%clk 0:00:31]} 35.
Rgxf1 {[%clk 0:00:40.7]} 35... Nxe3 {[%clk 0:00:30.6]} 36. Qf2 {[%clk
0:00:29.7]} 36... Nxf1 {[%clk 0:00:29.8]} 37. Rxf1 {[%clk 0:00:28.7]} 37... e3
{[%clk 0:00:28.8]} 38. Qf6+ {[%clk 0:00:27.7]} 38... Bg7 {[%clk 0:00:28.8]} 39.
Qe6 {[%clk 0:00:25.6]} 39... e2 {[%clk 0:00:28.9]} 40. Qxe2 {[%clk 0:00:25.4]}
40... Qxe2 {[%clk 0:00:28.4]} 0-1

[Event "Late-Titled-Tuesday-Blitz-May-28-2024"]
[Site "Chess.com"]
[Date "2024.05.28"]
[Round "3"]
[White "ckgchess"]
[Black "StoreySniper"]
[Result "1-0"]
[WhiteElo "2869"]
[BlackElo "2516"]
[TimeControl "180+1"]
[EndTime "14:28:26 PDT"]
[Termination "ckgchess won on time"]

1. e4 {[%clk 0:03:00.9]} 1... g6 {[%clk 0:02:58.9]} 2. d4 {[%clk 0:03:01.1]}
2... Bg7 {[%clk 0:02:59.5]} 3. Nc3 {[%clk 0:03:02]} 3... c5 {[%clk 0:02:59.6]}
4. dxc5 {[%clk 0:03:02.2]} 4... Bxc3+ {[%clk 0:02:58.7]} 5. bxc3 {[%clk
0:03:02.3]} 5... Nf6 {[%clk 0:02:59.4]} 6. Bd3 {[%clk 0:02:49.7]} 6... Qa5
{[%clk 0:02:58.6]} 7. Ne2 {[%clk 0:02:49.4]} 7... Qxc5 {[%clk 0:02:57.8]} 8. Be3
{[%clk 0:02:49.3]} 8... Qc7 {[%clk 0:02:57.5]} 9. O-O {[%clk 0:02:47.5]} 9... d6
{[%clk 0:02:57.5]} 10. Bh6 {[%clk 0:02:41.4]} 10... Nbd7 {[%clk 0:02:56.8]} 11.
Rb1 {[%clk 0:02:36.7]} 11... b6 {[%clk 0:02:56.8]} 12. Re1 {[%clk 0:02:35.5]}
12... Bb7 {[%clk 0:02:56]} 13. Ng3 {[%clk 0:02:35.2]} 13... Qxc3 {[%clk
0:02:36.7]} 14. a4 {[%clk 0:02:27.6]} 14... Qc7 {[%clk 0:02:09.3]} 15. Kh1
{[%clk 0:02:26.9]} 15... a6 {[%clk 0:02:01.2]} 16. f4 {[%clk 0:02:24.6]} 16...
Nc5 {[%clk 0:01:46.3]} 17. h3 {[%clk 0:02:04.5]} 17... Nfd7 {[%clk 0:01:34.8]}
18. Bg7 {[%clk 0:01:57]} 18... Rg8 {[%clk 0:01:34.1]} 19. Ba1 {[%clk 0:01:50.1]}
19... h5 {[%clk 0:01:19.7]} 20. a5 {[%clk 0:01:36.9]} 20... b5 {[%clk
0:01:18.9]} 21. Qe2 {[%clk 0:01:09.3]} 21... h4 {[%clk 0:01:17.8]} 22. Nf1
{[%clk 0:01:09.4]} 22... g5 {[%clk 0:01:03.4]} 23. Qf2 {[%clk 0:01:00.5]} 23...
Qxa5 {[%clk 0:00:46.7]} 24. fxg5 {[%clk 0:00:58.1]} 24... Ne5 {[%clk 0:00:34.9]}
25. Bxe5 {[%clk 0:00:57.4]} 25... dxe5 {[%clk 0:00:35.1]} 26. Qxc5 {[%clk
0:00:56.7]} 26... Rxg5 {[%clk 0:00:27.5]} 27. Qf2 {[%clk 0:00:55.6]} 27... f5
{[%clk 0:00:22]} 28. Qxh4 {[%clk 0:00:53.7]} 28... Rg8 {[%clk 0:00:20.3]} 29.
Qh5+ {[%clk 0:00:53.7]} 29... Kd7 {[%clk 0:00:19.3]} 30. Qxf5+ {[%clk
0:00:54.6]} 30... Kc7 {[%clk 0:00:19.2]} 31. Qxe5+ {[%clk 0:00:54.8]} 31... Kb6
{[%clk 0:00:17.4]} 32. Ne3 {[%clk 0:00:50.6]} 32... Raf8 {[%clk 0:00:15.8]} 33.
Qd4+ {[%clk 0:00:48]} 33... Kc7 {[%clk 0:00:15.9]} 34. Nd5+ {[%clk 0:00:48.9]}
34... Kb8 {[%clk 0:00:14.8]} 35. c4 {[%clk 0:00:44.1]} 35... Bc8 {[%clk
0:00:08.3]} 36. cxb5 {[%clk 0:00:42.6]} 36... Bxh3 {[%clk 0:00:08.3]} 37. bxa6+
{[%clk 0:00:42.8]} 37... Kc8 {[%clk 0:00:07.1]} 38. Rec1+ {[%clk 0:00:42.1]}
38... Kd8 {[%clk 0:00:06.9]} 39. Nf6+ {[%clk 0:00:41.2]} 1-0

[Event "Late-Titled-Tuesday-Blitz-May-28-2024"]
[Site "Chess.com"]
[Date "2024.05.28"]
[Round "3"]
[White "Jarming"]
[Black "N_I_Chess"]
[Result "1-0"]
[WhiteElo "2642"]
[BlackElo "2267"]
[TimeControl "180+1"]
[EndTime "14:28:28 PDT"]
[Termination "Jarming won on time"]

1. e4 {[%clk 0:02:52.1]} 1... Nf6 {[%clk 0:02:59]} 2. e5 {[%clk 0:02:51.7]} 2...
Nd5 {[%clk 0:02:58.7]} 3. d4 {[%clk 0:02:52.6]} 3... d6 {[%clk 0:02:58.8]} 4.
Nf3 {[%clk 0:02:53.5]} 4... g6 {[%clk 0:02:55.9]} 5. Bc4 {[%clk 0:02:52.6]} 5...
Nb6 {[%clk 0:02:54.9]} 6. Bb3 {[%clk 0:02:52.9]} 6... Bg7 {[%clk 0:02:55.5]} 7.
Qe2 {[%clk 0:02:51.8]} 7... d5 {[%clk 0:02:50.8]} 8. Nbd2 {[%clk 0:02:48.2]}
8... Na6 {[%clk 0:02:38.2]} 9. Nf1 {[%clk 0:02:45.8]} 9... O-O {[%clk
0:02:31.9]} 10. Be3 {[%clk 0:02:43.3]} 10... Bg4 {[%clk 0:01:54.9]} 11. h3
{[%clk 0:02:40.3]} 11... Bd7 {[%clk 0:01:25.7]} 12. h4 {[%clk 0:02:36.3]} 12...
h5 {[%clk 0:01:15.3]} 13. O-O-O {[%clk 0:02:35.1]} 13... Rc8 {[%clk 0:01:11.8]}
14. Kb1 {[%clk 0:02:26.9]} 14... c5 {[%clk 0:00:58.9]} 15. dxc5 {[%clk
0:02:23.2]} 15... Nxc5 {[%clk 0:00:59.8]} 16. Bxd5 {[%clk 0:02:23.6]} 16... Qc7
{[%clk 0:00:39.9]} 17. Ng3 {[%clk 0:02:08.7]} 17... Bg4 {[%clk 0:00:27.9]} 18.
Bf4 {[%clk 0:01:02]} 18... Nxd5 {[%clk 0:00:23.9]} 19. Rxd5 {[%clk 0:01:00.8]}
19... Na4 {[%clk 0:00:15.7]} 20. Rhd1 {[%clk 0:00:45.8]} 20... Qb6 {[%clk
0:00:12.4]} 21. Rb5 {[%clk 0:00:44.1]} 21... Qc7 {[%clk 0:00:10]} 22. Rb4 {[%clk
0:00:43]} 22... Nb6 {[%clk 0:00:08.1]} 23. e6 {[%clk 0:00:38.1]} 23... Qc5
{[%clk 0:00:02.8]} 24. exf7+ {[%clk 0:00:35.8]} 24... Rxf7 {[%clk 0:00:03.7]}
25. Re4 {[%clk 0:00:33.4]} 25... Nd5 {[%clk 0:00:02.6]} 26. Be5 {[%clk
0:00:18.3]} 26... Qb6 {[%clk 0:00:01]} 27. Bxg7 {[%clk 0:00:17.8]} 27... Rxg7
{[%clk 0:00:01]} 28. Ka1 {[%clk 0:00:17.3]} 1-0

[Event "Late-Titled-Tuesday-Blitz-May-28-2024"]
[Site "Chess.com"]
[Date "2024.05.28"]
[Round "3"]
[White "Genghis_K"]
[Black "Bryanl106"]
[Result "0-1"]
[WhiteElo "2933"]
[BlackElo "2687"]
[TimeControl "180+1"]
[EndTime "14:28:30 PDT"]
[Termination "Bryanl106 won by checkmate"]

1. e4 {[%clk 0:02:53]} 1... e5 {[%clk 0:02:59.5]} 2. Nf3 {[%clk 0:02:53.1]} 2...
Nc6 {[%clk 0:02:59.4]} 3. d4 {[%clk 0:02:53.6]} 3... exd4 {[%clk 0:02:59.5]} 4.
Nxd4 {[%clk 0:02:54.3]} 4... Bb4+ {[%clk 0:02:59.7]} 5. c3 {[%clk 0:02:54.2]}
5... Bc5 {[%clk 0:02:58.4]} 6. Be3 {[%clk 0:02:54.3]} 6... Bb6 {[%clk
0:02:58.7]} 7. Nf5 {[%clk 0:02:53.1]} 7... Bxe3 {[%clk 0:02:55.1]} 8. Nxe3
{[%clk 0:02:52.6]} 8... d6 {[%clk 0:02:55.6]} 9. c4 {[%clk 0:02:44.1]} 9... Be6
{[%clk 0:02:54.4]} 10. Nc3 {[%clk 0:02:43.2]} 10... Qg5 {[%clk 0:02:49.1]} 11.
Be2 {[%clk 0:02:39.3]} 11... O-O-O {[%clk 0:02:44.1]} 12. O-O {[%clk 0:02:38]}
12... Nge7 {[%clk 0:02:44]} 13. Kh1 {[%clk 0:02:19.5]} 13... f5 {[%clk
0:02:38.5]} 14. f4 {[%clk 0:02:14.5]} 14... Qf6 {[%clk 0:02:31.5]} 15. exf5
{[%clk 0:02:07.3]} 15... Nxf5 {[%clk 0:02:31.1]} 16. Ned5 {[%clk 0:02:03.3]}
16... Qf7 {[%clk 0:02:29.4]} 17. Bh5 {[%clk 0:01:53.9]} 17... g6 {[%clk
0:02:27.8]} 18. Bf3 {[%clk 0:01:54.4]} 18... Kb8 {[%clk 0:02:22.7]} 19. Nb5
{[%clk 0:01:43.9]} 19... Rd7 {[%clk 0:02:15.9]} 20. Qd2 {[%clk 0:01:28.2]} 20...
a6 {[%clk 0:02:11.7]} 21. a4 {[%clk 0:01:27.4]} 21... Kc8 {[%clk 0:02:09.7]} 22.
Qf2 {[%clk 0:01:25.1]} 22... Kd8 {[%clk 0:01:58.3]} 23. Rfd1 {[%clk 0:01:19.1]}
23... Re8 {[%clk 0:01:43]} 24. b4 {[%clk 0:00:58.3]} 24... Nxb4 {[%clk
0:01:25.8]} 25. Nxb4 {[%clk 0:00:49.3]} 25... axb5 {[%clk 0:01:24.6]} 26. Bxb7
{[%clk 0:00:45.3]} 26... Ke7 {[%clk 0:01:16]} 27. cxb5 {[%clk 0:00:44.6]} 27...
Rg8 {[%clk 0:01:03]} 28. a5 {[%clk 0:00:41.2]} 28... g5 {[%clk 0:00:52.8]} 29.
a6 {[%clk 0:00:38.7]} 29... g4 {[%clk 0:00:44.7]} 30. Nc6+ {[%clk 0:00:35.7]}
30... Kf8 {[%clk 0:00:43.5]} 31. a7 {[%clk 0:00:36.3]} 31... g3 {[%clk
0:00:41.1]} 32. a8=Q+ {[%clk 0:00:35.5]} 32... Kg7 {[%clk 0:00:41.5]} 33. Qb2+
{[%clk 0:00:35.8]} 33... Kg6 {[%clk 0:00:34.9]} 34. Qaa3 {[%clk 0:00:24.1]}
34... Kh6 {[%clk 0:00:31.7]} 35. Nd4 {[%clk 0:00:19.6]} 35... Qh5 {[%clk
0:00:26.6]} 36. Nxf5+ {[%clk 0:00:19.3]} 36... Bxf5 {[%clk 0:00:25.8]} 37. Qf6+
{[%clk 0:00:18.9]} 37... Rg6 {[%clk 0:00:25.9]} 38. Qxf5 {[%clk 0:00:08.6]}
38... Qxh2# {[%clk 0:00:25.3]} 0-1

[Event "Late-Titled-Tuesday-Blitz-May-28-2024"]
[Site "Chess.com"]
[Date "2024.05.28"]
[Round "3"]
[White "lluiss"]
[Black "NajdorfPlayerc5"]
[Result "1-0"]
[WhiteElo "2187"]
[BlackElo "2432"]
[TimeControl "180+1"]
[EndTime "14:28:32 PDT"]
[Termination "lluiss won by checkmate"]

1. e4 {[%clk 0:02:59.7]} 1... c5 {[%clk 0:02:56.4]} 2. Nf3 {[%clk 0:02:58.6]}
2... d6 {[%clk 0:02:56]} 3. d4 {[%clk 0:02:58.5]} 3... cxd4 {[%clk 0:02:56.9]}
4. Nxd4 {[%clk 0:02:58.5]} 4... Nf6 {[%clk 0:02:57.1]} 5. Nc3 {[%clk 0:02:58]}
5... Nc6 {[%clk 0:02:56.7]} 6. Bg5 {[%clk 0:02:44.8]} 6... e6 {[%clk 0:02:55.2]}
7. Be2 {[%clk 0:02:38.1]} 7... a6 {[%clk 0:02:47.2]} 8. O-O {[%clk 0:02:33.1]}
8... Be7 {[%clk 0:02:39.9]} 9. Nb3 {[%clk 0:02:23.4]} 9... O-O {[%clk
0:02:29.3]} 10. Be3 {[%clk 0:02:23.2]} 10... b5 {[%clk 0:02:23.7]} 11. a3 {[%clk
0:02:22.2]} 11... Bb7 {[%clk 0:02:22.2]} 12. f4 {[%clk 0:02:20.4]} 12... Rc8
{[%clk 0:02:16.6]} 13. Bf3 {[%clk 0:02:19.7]} 13... Qc7 {[%clk 0:01:45.5]} 14.
Qe2 {[%clk 0:02:10.8]} 14... Na5 {[%clk 0:01:34.4]} 15. Nxa5 {[%clk 0:02:08.1]}
15... Qxa5 {[%clk 0:01:35.3]} 16. Qd2 {[%clk 0:01:43.5]} 16... Rfd8 {[%clk
0:01:18.6]} 17. e5 {[%clk 0:01:29.2]} 17... dxe5 {[%clk 0:01:01.6]} 18. Nd5
{[%clk 0:01:18.6]} 18... Qxd2 {[%clk 0:00:57.3]} 19. Nxe7+ {[%clk 0:01:18.6]}
19... Kf8 {[%clk 0:00:56.8]} 20. Bxd2 {[%clk 0:01:18.8]} 20... Rxd2 {[%clk
0:00:18.4]} 21. Nxc8 {[%clk 0:01:16.9]} 21... Bxc8 {[%clk 0:00:17.7]} 22. fxe5
{[%clk 0:01:14]} 22... Nd7 {[%clk 0:00:16.6]} 23. Rfd1 {[%clk 0:01:13.7]} 23...
Rxc2 {[%clk 0:00:14.9]} 24. Rac1 {[%clk 0:01:13.4]} 24... Rc4 {[%clk 0:00:13.3]}
25. b3 {[%clk 0:01:12.3]} 25... Rxc1 {[%clk 0:00:04.9]} 26. Rxc1 {[%clk
0:01:11.5]} 26... Nb6 {[%clk 0:00:04.8]} 27. Rc6 {[%clk 0:01:10.4]} 27... Ke7
{[%clk 0:00:01.8]} 28. Rxb6 {[%clk 0:01:09.9]} 28... Kd7 {[%clk 0:00:01.9]} 29.
Rc6 {[%clk 0:01:06.9]} 29... Bb7 {[%clk 0:00:01.5]} 30. Rc3 {[%clk 0:01:05.9]}
30... Bxf3 {[%clk 0:00:01]} 31. Rxf3 {[%clk 0:01:04.9]} 31... f6 {[%clk
0:00:01.9]} 32. exf6 {[%clk 0:01:04.4]} 32... gxf6 {[%clk 0:00:02.8]} 33. Rxf6
{[%clk 0:01:04.5]} 33... Ke7 {[%clk 0:00:03.7]} 34. Rf3 {[%clk 0:01:04]} 34...
e5 {[%clk 0:00:04.6]} 35. Kf2 {[%clk 0:01:03.9]} 35... Ke6 {[%clk 0:00:04.7]}
36. Ke3 {[%clk 0:01:03.5]} 36... Kd5 {[%clk 0:00:04.2]} 37. Rh3 {[%clk
0:01:03.5]} 37... a5 {[%clk 0:00:03.3]} 38. Rxh7 {[%clk 0:01:02.8]} 38... a4
{[%clk 0:00:03]} 39. bxa4 {[%clk 0:01:02.3]} 39... bxa4 {[%clk 0:00:03.9]} 40.
Ra7 {[%clk 0:01:02.2]} 40... Kc4 {[%clk 0:00:03.8]} 41. Rxa4+ {[%clk 0:01:02.2]}
41... Kb3 {[%clk 0:00:04.7]} 42. Ra8 {[%clk 0:01:02]} 42... Kc4 {[%clk 0:00:05]}
43. Rd8 {[%clk 0:01:01.5]} 43... Kb5 {[%clk 0:00:05.9]} 44. a4+ {[%clk
0:01:01.1]} 44... Kxa4 {[%clk 0:00:06.8]} 45. Rb8 {[%clk 0:00:59.9]} 45... Ka5
{[%clk 0:00:06.9]} 46. h4 {[%clk 0:01:00.1]} 46... Ka6 {[%clk 0:00:07.5]} 47.
Rb1 {[%clk 0:01:00.1]} 47... Ka7 {[%clk 0:00:08.4]} 48. h5 {[%clk 0:01:00.5]}
48... Ka6 {[%clk 0:00:09.3]} 49. h6 {[%clk 0:01:00.9]} 49... Ka7 {[%clk
0:00:10.2]} 50. h7 {[%clk 0:01:01.2]} 50... Ka6 {[%clk 0:00:11.1]} 51. h8=Q
{[%clk 0:00:59.8]} 51... Ka7 {[%clk 0:00:12]} 52. Qb8+ {[%clk 0:00:57.6]} 52...
Ka6 {[%clk 0:00:12.9]} 53. Qb6# {[%clk 0:00:57.7]} 1-0